bitfinex-derivatives/quotes_SOLF0:USTF0_20250428
["timestamp","ask_amount","ask_price","bid_price","bid_amount"]
[1745843739898,6.6157,151.09,151.06,6.6166]
[1745843740102,1.15193644,151.18,151.05,6.1338]
[1745843740401,6.6151,151.1,151.07,6.6162]
[1745843740799,6.6151,151.1,151.06,1.9013]
[1745843741405,6.6151,151.1,151.07,6.6162]
[1745843742103,6.6151,151.1,151.08,6.6159]
[1745843742305,6.6148,151.11,151.06,1.9013]
[1745843742604,6.6148,151.11,151.08,6.6156]
[1745843743604,6.6152,151.1,151.08,6.6156]
[1745843743907,19.84,151.19,151.08,6.6156]
[1745843744611,6.6149,151.11,151.08,6.6156]
[1745843748609,6.6149,151.11,151.09,6.6155]
[1745843750909,6.6149,151.11,151.08,6.6157]
[1745843752813,6.6151,151.1,151.08,6.6157]
[1745843753113,19.84,151.17,151.08,6.6157]
[1745843754316,6.6149,151.11,151.08,6.6157]
[1745843754613,6.6149,151.11,151.09,6.6155]
[1745843759709,6.6151,151.1,151.08,6.6157]
[1745843761021,19.84,151.17,151.08,6.6157]
[1745843761519,6.6149,151.11,151.08,6.6157]
[1745843762421,6.6152,151.1,151.08,6.6157]
[1745843762615,19.84,151.17,151.08,6.6157]
[1745843764019,6.6152,151.1,151.08,6.6157]
[1745843764222,19.84,151.17,151.08,6.6157]
[1745843764422,19.84,151.17,151.09,6.6155]
[1745843764722,6.615,151.11,151.09,6.6155]
[1745843765927,6.615,151.11,151.08,6.6158]
[1745843768029,6.6152,151.1,151.08,6.6158]
[1745843768833,6.6149,151.11,151.08,6.6158]
[1745843771530,19.84,151.17,151.08,6.6158]
[1745843772834,19.84,151.16,150.99,476.22]
[1745843773130,0.3547,151.16,151.01,4.0699]
[1745843773330,6.6143,151.12,151.09,6.6153]
[1745843775333,6.6147,151.11,151.08,6.6158]
[1745843776935,6.6147,151.11,151.09,6.6154]
[1745843777433,6.6144,151.12,151.01,4.0699]
[1745843777631,0.3547,151.2,151.02,1.21531604]
[1745843777829,6.6137,151.14,151.02,1.21531604]
[1745843778034,0.3547,151.2,151.03,13.2362]
[1745843778231,0.3547,151.2,151.04,1.21531604]
[1745843778534,0.3547,151.2,151.08,6.6159]
[1745843778839,6.6155,151.1,151.01,4.0699]
[1745843779029,6.6155,151.1,151.02,1.21530046]
[1745843779229,6.6155,151.1,151.01,4.0699]
[1745843780133,6.6155,151.1,151.07,6.616]
[1745843780434,6.6155,151.1,151.01,4.0699]
[1745843780733,6.6155,151.1,151.07,6.6161]
[1745843781440,6.6155,151.1,151.08,6.6159]
[1745843782735,6.6156,151.09,151.07,6.6162]
[1745843782933,19.84,151.17,151.01,4.0699]
[1745843783331,6.6157,151.09,151.06,6.6165]
[1745843783739,6.6157,151.09,151.01,4.0699]
[1745843783931,33.0659,151.15,151.01,4.0699]
[1745843784235,20.1948,151.15,151.01,10.6887]
[1745843784431,19.84,151.13,151.01,4.0699]
[1745843784735,19.84,151.13,151.02,6.6184]
[1745843785041,6.6175,151.05,151.02,6.6184]
[1745843786138,13.2268,151.14,151.01,4.0699]
[1745843786339,0.3548,151.15,151.01,4.0699]
[1745843786637,0.3548,151.15,151.07,6.6164]
[1745843787241,6.6156,151.09,151.06,6.6166]
[1745843787634,6.6156,151.09,151.07,6.6163]
[1745843787939,6.6153,151.1,151.07,6.6163]
[1745843788134,0.3548,151.15,151.07,6.6163]
[1745843789040,0.3548,151.15,151.08,6.616]
[1745843789838,6.6152,151.1,151.07,6.6162]
[1745843790242,0.3548,151.15,151.01,4.0699]
[1745843790440,6.6149,151.11,151.08,6.616]
[1745843790937,6.6149,151.11,151.07,6.6162]
[1745843791242,6.6152,151.1,151.07,6.6162]
[1745843792042,33.0634,151.18,151.01,4.0699]
[1745843792541,6.6138,151.13,151.1,6.6148]
[1745843792842,20.193,151.2,151.02,13.237]
[1745843793039,20.193,151.2,151.03,1.21522195]
[1745843793240,6.6138,151.14,151.11,6.6146]
[1745843793438,20.193,151.2,151.11,6.6146]
[1745843794244,6.6137,151.14,151.11,6.6146]
[1745843794444,20.193,151.2,151.11,6.6146]
[1745843795045,6.6138,151.13,151.1,6.6149]
[1745843795237,20.193,151.2,151.1,6.6149]
[1745843795638,6.6147,151.11,151.02,13.237]
[1745843795845,6.6147,151.11,151.03,1.21519566]
[1745843796144,0.353,151.2,151.03,1.21519566]
[1745843796646,6.6144,151.12,151.09,6.6152]
[1745843797147,6.6144,151.12,151.1,6.6151]
[1745843801048,6.6158,151.09,151.07,6.6161]
[1745843801251,19.84,151.17,151.01,4.0699]
[1745843801451,19.84,151.17,151.02,1.21525722]
[1745843801954,19.84,151.17,151.01,4.0699]
[1745843802152,6.6158,151.09,151.06,6.6164]
[1745843802647,13.2252,151.16,151.06,6.6164]
[1745843802951,13.2252,151.16,151.07,6.6164]
[1745843804252,6.6158,151.09,151.07,6.6164]
[1745843804954,6.6152,151.1,151.08,6.616]
[1745843805250,6.6152,151.1,151.01,4.0699]
[1745843805758,6.6152,151.1,151.07,6.6161]
[1745843806051,13.2252,151.16,151.01,17.3076]
[1745843806255,13.2252,151.16,151.02,1.21526054]
[1745843807158,13.2252,151.16,151.01,17.3076]
[1745843807355,6.6149,151.11,151.08,6.6157]
[1745843807556,6.6149,151.11,151.01,17.3076]
[1745843807756,6.6149,151.11,151.02,1.21526224]
[1745843807956,6.6149,151.11,151.08,6.6156]
[1745843809056,6.6149,151.11,151.01,17.3076]
[1745843809252,33.415,151.2,151.03,13.2359]
[1745843810457,6.614,151.13,151.1,6.6148]
[1745843811858,6.6143,151.12,151.1,6.6148]
[1745843812258,33.415,151.2,151.1,6.6148]
[1745843812657,6.6139,151.13,151.1,6.6148]
[1745843812957,6.6139,151.13,151.11,6.6146]
[1745843813861,6.6136,151.14,151.11,6.6146]
[1745843814262,33.415,151.2,151.11,6.6146]
[1745843815462,6.6141,151.13,151.11,6.6146]
[1745843816262,6.6133,151.15,151.07,2.0697]
[1745843816463,0.353,151.2,151.07,2.0697]
[1745843816859,6.6127,151.16,151.13,6.6134]
[1745843817661,6.613,151.15,151.13,6.6134]
[1745843817856,0.353,151.2,151.13,6.6134]
[1745843819265,6.6127,151.16,151.13,6.6134]
[1745843819563,0.353,151.2,151.13,6.6134]
[1745843819862,6.612,151.17,151.07,2.0697]
[1745843820363,6.6127,151.16,151.14,6.6133]
[1745843820563,496.06,151.22,151.07,2.0697]
[1745843820759,13.2207,151.21,151.07,2.0697]
[1745843820966,6.6137,151.14,151.11,6.6145]
[1745843821465,13.2221,151.2,151.1,6.6149]
[1745843821661,13.2221,151.2,151.07,2.0697]
[1745843822064,6.6136,151.14,151.11,6.6144]
[1745843822464,6.6136,151.14,151.07,2.0697]
[1745843823460,19.84,151.19,151.07,2.0697]
[1745843823763,0.3533,151.18,151.07,2.0697]
[1745843823965,19.84,151.17,151.07,2.0697]
[1745843824363,19.84,151.17,151.07,8.6859]
[1745843824563,19.84,151.17,151.06,1.8941]
[1745843825267,19.84,151.17,151.07,6.6163]
[1745843825566,33.0652,151.16,151.06,1.8941]
[1745843825767,6.6163,151.08,151.05,6.6171]
[1745843826565,6.6163,151.08,151.06,6.6167]
[1745843826767,33.0652,151.16,151.0,3.936]
[1745843827169,6.6168,151.07,151.0,3.936]
[1745843827870,6.6168,151.07,151.04,6.6177]
[1745843828067,6.6168,151.07,151.0,3.936]
[1745843829271,6.6169,151.06,151.0,3.936]
[1745843829770,6.6169,151.06,151.03,6.6179]
[1745843830173,6.6166,151.07,151.0,3.936]
[1745843830471,6.6166,151.07,151.05,6.6172]
[1745843832173,6.6169,151.06,151.0,3.936]
[1745843832473,19.84,151.14,151.0,3.936]
[1745843832772,6.6167,151.07,151.04,6.6173]
[1745843834371,6.6167,151.07,151.05,6.6173]
[1745843834773,6.6167,151.07,151.04,6.6175]
[1745843834970,6.6167,151.07,151.0,3.936]
[1745843835176,19.84,151.14,151.0,3.936]
[1745843835371,19.84,151.14,151.05,6.6171]
[1745843835566,6.6163,151.08,151.05,6.6171]
[1745843835869,19.84,151.14,151.04,6.6175]
[1745843836175,19.84,151.12,150.99,2.039]
[1745843836375,0.3528,151.11,150.99,2.039]
[1745843836575,19.84,151.1,151.0,6.6192]
[1745843836871,19.84,151.1,150.99,2.039]
[1745843837076,13.5825,151.11,150.99,2.039]
[1745843837376,0.3528,151.11,151.04,6.6177]
[1745843837570,6.6172,151.06,150.99,2.039]
[1745843837772,6.6172,151.06,151.04,6.6176]
[1745843838477,6.6172,151.06,151.03,6.618]
[1745843839479,0.3528,151.11,151.0,2.0711]
[1745843840180,6.6163,151.08,151.05,6.6171]
[1745843840479,6.6163,151.08,151.0,2.0711]
[1745843842577,6.6163,151.08,151.05,6.6169]
[1745843843684,6.6165,151.07,151.05,6.6169]
[1745843843882,33.4189,151.15,151.05,6.6169]
[1745843844182,6.6162,151.08,151.05,6.6169]
[1745843844484,33.4189,151.15,151.05,6.6169]
[1745843844983,6.6162,151.08,151.05,6.6169]
[1745843845183,6.6162,151.08,151.06,6.6168]
[1745843845384,6.6162,151.08,151.01,1.9319]
[1745843845884,6.6164,151.07,151.05,6.617]
[1745843846485,33.4189,151.15,151.05,6.617]
[1745843846683,33.4189,151.15,151.04,6.6175]
[1745843846880,33.4189,151.15,151.01,1.9319]
[1745843847284,33.4189,151.15,151.05,6.6172]
[1745843847687,19.84,151.13,151.01,1.9319]
[1745843847886,19.84,151.13,151.03,6.618]
[1745843848181,6.6151,151.1,151.03,6.618]
[1745843848382,19.84,151.13,151.04,6.6177]
[1745843848986,19.84,151.13,151.03,6.618]
[1745843849288,19.84,151.13,151.01,1.9319]
[1745843849489,6.6168,151.07,151.04,6.6177]
[1745843849688,19.84,151.13,151.04,6.6177]
[1745843850285,6.6169,151.06,151.04,6.6177]
[1745843850685,6.6163,151.08,151.01,1.9319]
[1745843850988,19.84,151.13,151.01,1.9319]
[1745843851491,6.6168,151.07,151.01,1.9319]
[1745843851990,6.6168,151.07,151.04,6.6175]
[1745843852791,19.84,151.13,151.04,6.6175]
[1745843853290,19.84,151.13,151.01,1.9319]
[1745843853493,6.6162,151.08,151.01,1.9319]
[1745843853791,6.6162,151.08,151.05,6.6169]
[1745843854092,6.6167,151.07,151.05,6.6169]
[1745843854892,6.6169,151.06,151.04,6.6176]
[1745843855195,19.84,151.13,151.01,1.9319]
[1745843855387,6.6175,151.05,151.01,1.9319]
[1745843855795,6.6171,151.06,151.03,6.6177]
[1745843855989,6.6171,151.06,151.01,1.9319]
[1745843856493,19.84,151.1,151.0,6.6192]
[1745843856793,0.3531,151.09,150.99,2.039]
[1745843856997,6.6184,151.03,151.01,6.619]
[1745843857293,6.6184,151.03,150.99,2.039]
[1745843857490,6.6188,151.02,151.0,6.6194]
[1745843858393,6.6194,151.01,150.99,8.6588]
[1745843859791,6.6187,151.02,150.99,8.6588]
[1745843860590,6.6193,151.01,150.99,6.6198]
[1745843860795,33.0723,151.08,150.95,1.9727]
[1745843861798,6.6194,151.01,150.98,6.6201]
[1745843861995,33.0723,151.08,150.95,1.9727]
[1745843862299,6.6197,151.0,150.97,6.6205]
[1745843863893,6.6197,151.0,150.98,6.6202]
[1745843864194,19.84,151.06,150.95,1.9727]
[1745843864594,19.84,151.06,150.96,6.6208]
[1745843864797,33.0739,151.06,150.95,1.9727]
[1745843865197,6.6197,151.0,150.98,6.6201]
[1745843865497,21.3457423,151.09,150.95,1.9727]
[1745843865797,6.6189,151.02,150.99,6.6197]
[1745843866293,6.6194,151.01,150.98,6.6202]
[1745843866790,6.6194,151.01,150.94,3.879]
[1745843866791,0.3531,151.09,150.94,1.8936]
[1745843866994,19.84,151.04,150.96,6.6211]
[1745843867190,19.84,151.04,150.94,1.8936]
[1745843867395,0.3553,151.03,150.94,1.8936]
[1745843867595,6.6211,150.97,150.94,8.5155]
[1745843868701,6.6206,150.98,150.95,6.6216]
[1745843869301,6.6206,150.98,150.94,1.8936]
[1745843869302,6.6206,150.98,150.96,6.6212]
[1745843870101,6.6202,150.99,150.96,6.6212]
[1745843870594,0.3553,151.03,150.94,1.8936]
[1745843872303,6.6202,150.99,150.97,6.6208]
[1745843873898,6.6202,150.99,150.96,6.621]
[1745843875401,6.6193,151.01,150.98,6.62]
[1745843875604,509.5732,151.07,150.94,1.8936]
[1745843876002,6.6192,151.01,150.99,6.6199]
[1745843876208,509.5732,151.07,150.99,6.6199]
[1745843876399,509.5732,151.07,150.94,1.8936]
[1745843876603,6.619,151.02,150.99,6.6195]
[1745843876906,6.619,151.02,150.94,1.8936]
[1745843877703,6.6191,151.01,150.94,1.8936]
[1745843878009,509.5732,151.07,150.99,6.6195]
[1745843878308,509.5732,151.07,150.94,1.8936]
[1745843879208,509.5732,151.07,150.99,6.6199]
[1745843879209,6.6193,151.01,150.99,6.6199]
[1745843879805,6.6188,151.02,150.99,6.6199]
[1745843880010,6.6188,151.02,151.0,6.6194]
[1745843880410,6.6191,151.01,150.99,6.6197]
[1745843880912,6.6188,151.02,151.0,6.6195]
[1745843881505,509.5732,151.07,150.99,6.6197]
[1745843882011,6.6189,151.02,150.99,6.6197]
[1745843882507,509.5732,151.07,150.93,1.9931]
[1745843883212,6.6198,151.0,150.98,6.6203]
[1745843884516,6.6199,150.99,150.97,6.6206]
[1745843884718,496.34,151.07,150.93,1.9931]
[1745843885016,6.6215,150.96,150.93,1.9931]
[1745843885218,6.6215,150.96,150.91,3.9063]
[1745843885614,6.6215,150.96,150.93,6.6222]
[1745843885915,6.6215,150.96,150.91,3.9063]
[1745843886709,0.3554,151.03,150.91,3.9063]
[1745843886917,0.3554,151.03,150.89,2.0408]
[1745843887116,20.1954,151.03,150.84,3.9626]
[1745843887416,19.84,151.01,150.84,6.0034]
[1745843887617,19.84,150.97,150.84,6.0034]
[1745843887915,6.625,150.88,150.84,6.0034]
[1745843888113,0.3554,150.96,150.84,6.0034]
[1745843888317,0.3554,150.96,150.84,12.6298]
[1745843888820,0.3554,150.96,150.84,3.9383]
[1745843889013,0.3554,150.96,150.8,25.58398195]
[1745843889313,19.84,150.94,150.8,25.58398195]
[1745843889817,19.84,150.94,150.8,2.0997]
[1745843890214,13.2434,150.95,150.8,2.0997]
[1745843890716,0.3554,150.96,150.8,2.0997]
[1745843891117,0.3554,150.96,150.87,6.6249]
[1745843891619,6.6242,150.9,150.87,6.6249]
[1745843892116,0.3554,150.96,150.88,6.6247]
[1745843892315,0.3554,150.96,150.8,2.0997]
[1745843893017,0.3554,150.96,150.91,6.6232]
[1745843893323,6.622,150.95,150.8,2.0997]
[1745843893623,6.622,150.95,150.81,1.21690975]
[1745843893825,476.62,150.97,150.91,6.6232]
[1745843893826,6.6222,150.94,150.91,6.6232]
[1745843894721,476.62,150.97,150.82,13.2547]
[1745843894920,476.62,150.97,150.83,1.21684803]
[1745843895118,476.62,150.97,150.84,4.0014]
[1745843895320,6.6226,150.93,150.84,4.0014]
[1745843895723,6.6226,150.93,150.9,6.6236]
[1745843896423,6.6223,150.94,150.91,6.6233]
[1745843896824,476.62,150.97,150.84,4.0014]
[1745843897025,6.6227,150.93,150.9,6.6236]
[1745843899724,6.623,150.92,150.89,6.6241]
[1745843900027,476.62,150.97,150.84,4.0014]
[1745843900223,6.6227,150.93,150.9,6.6236]
[1745843900628,6.6227,150.93,150.84,4.0014]
[1745843901727,0.3579,151.01,150.84,4.0014]
[1745843901927,1.15323436,151.02,150.84,4.0014]
[1745843901928,20.99323436,151.02,150.93,6.6225]
[1745843902128,476.82,151.03,150.86,2.0796]
[1745843902623,6.6213,150.96,150.93,6.6222]
[1745843903530,6.6217,150.95,150.93,6.6222]
[1745843903830,6.6217,150.95,150.92,6.6228]
[1745843904128,496.66,151.03,150.86,2.0796]
[1745843904931,6.622,150.95,150.92,6.6227]
[1745843905431,6.6214,150.96,150.93,6.6225]
[1745843905627,496.66,151.03,150.86,2.0796]
[1745843906229,496.66,151.03,150.93,6.6223]
[1745843906527,476.82,151.03,150.93,6.6223]
[1745843906733,6.6216,150.96,150.93,6.6223]
[1745843908633,6.6216,150.96,150.94,6.6221]
[1745843908831,6.6216,150.96,150.86,2.0796]
[1745843909136,6.6216,150.96,150.93,6.6223]
[1745843909334,6.6217,150.95,150.93,6.6223]
[1745843909629,19.88,151.02,150.86,2.0796]
[1745843910235,19.88,151.02,150.92,6.6228]
[1745843910436,6.6219,150.95,150.92,6.6228]
[1745843911038,6.6214,150.96,150.93,6.6225]
[1745843911337,6.6214,150.96,150.86,2.0796]
[1745843911935,6.6214,150.96,150.94,6.6219]
[1745843913335,19.88,151.02,150.93,6.6225]
[1745843914038,6.6216,150.96,150.93,6.6225]
[1745843914734,6.6217,150.95,150.93,6.6225]
[1745843915341,6.6215,150.96,150.93,6.6225]
[1745843916840,19.88,151.02,150.93,6.6225]
[1745843917433,19.88,151.02,150.86,2.0796]
[1745843917737,6.6215,150.96,150.94,6.6221]
[1745843917934,490.0568,151.03,150.86,2.0796]
[1745843918129,476.82,151.03,150.86,2.0796]
[1745843918333,476.82,151.03,150.87,1.21649496]
[1745843918530,6.6198,151.0,150.97,6.6205]
[1745843918940,476.82,151.03,150.97,6.6205]
[1745843919238,6.6197,151.0,150.9,13.2477]
[1745843919434,6.6197,151.0,150.91,5.8981]
[1745843919839,6.6199,150.99,150.97,6.6205]
[1745843920639,6.6199,150.99,150.96,6.6211]
[1745843921441,6.6199,150.99,150.97,6.6207]
[1745843922240,6.6197,151.0,150.97,6.6207]
[1745843922541,6.6197,151.0,150.98,6.6202]
[1745843922842,6.6197,151.0,150.91,5.8981]
[1745843923543,6.6192,151.01,150.99,6.6199]
[1745843923744,6.6192,151.01,150.91,5.8981]
[1745843923944,0.3597,151.05,150.91,5.8981]
[1745843924145,6.6198,151.0,150.97,6.6206]
[1745843924442,0.3597,151.05,150.91,5.8981]
[1745843924643,6.6193,151.01,150.98,6.62]
[1745843927351,6.6193,151.01,150.99,6.6199]
[1745843927756,6.6193,151.01,150.91,5.8981]
[1745843927949,6.6193,151.01,150.98,6.62]
[1745843928148,6.6188,151.02,150.91,5.8981]
[1745843928850,6.6188,151.02,150.99,6.6197]
[1745843929454,6.6191,151.01,150.99,6.6197]
[1745843931550,0.3582,151.08,151.01,6.6187]
[1745843931755,0.3582,151.08,150.92,13.2454]
[1745843932256,6.6186,151.03,151.0,6.6192]
[1745843932554,0.3582,151.08,151.0,6.6192]
[1745843932955,6.6187,151.02,151.0,6.6192]
[1745843933351,6.6187,151.02,150.99,6.6196]
[1745843933956,6.6187,151.02,150.92,13.2454]
[1745843934152,6.6196,151.0,150.92,13.2454]
[1745843935464,19.88,151.04,150.91,5.8981]
[1745843935851,19.88,151.04,150.94,6.6219]
[1745843936060,6.6212,150.97,150.94,6.6219]
[1745843936559,6.6213,150.96,150.94,6.6219]
[1745843936761,6.6213,150.96,150.93,6.6223]
[1745843936960,19.88,151.04,150.93,6.6223]
[1745843937261,6.6211,150.97,150.93,6.6223]
[1745843937461,6.6211,150.97,150.94,6.6219]
[1745843939160,6.6211,150.97,150.91,5.8981]
[1745843939564,6.6211,150.97,150.94,6.6218]
[1745843940664,6.6211,150.97,150.95,6.6215]
[1745843940962,6.6211,150.97,150.91,5.8981]
[1745843941669,6.6211,150.97,150.94,6.6219]
[1745843941965,19.88,151.04,150.91,5.8981]
[1745843942165,13.2347,151.05,150.91,5.8981]
[1745843942366,13.2347,151.05,150.97,6.6204]
[1745843942664,6.6199,150.99,150.97,6.6204]
[1745843943465,6.6206,150.98,150.96,6.6211]
[1745843945967,6.62,150.99,150.91,5.8981]
[1745843946160,33.1147,151.05,150.91,5.8981]
[1745843946864,0.3582,151.08,150.92,1.21634753]
[1745843947064,6.6179,151.04,151.01,6.6188]
[1745843947264,0.3582,151.08,151.01,6.6188]
[1745843947566,0.3582,151.08,150.93,13.2449]
[1745843948063,6.6184,151.03,151.0,6.6193]
[1745843949065,6.6184,151.03,151.01,6.619]
[1745843950168,0.3582,151.08,151.04,6.6177]
[1745843950169,6.6171,151.06,151.04,6.6177]
[1745843950364,6.6171,151.06,150.91,5.8981]
[1745843950770,6.6175,151.05,150.95,13.2432]
[1745843951461,6.6171,151.06,151.03,6.6179]
[1745843953467,6.6174,151.05,151.03,6.6179]
[1745843954168,6.6174,151.05,151.02,6.6184]
[1745843956167,6.6182,151.03,151.01,6.619]
[1745843956367,496.62,151.1,150.97,4.0371]
[1745843956770,6.6175,151.05,151.02,6.6183]
[1745843957870,6.6175,151.05,151.03,6.6181]
[1745843958073,6.6175,151.05,150.97,4.0371]
[1745843958675,6.6175,151.05,151.02,6.6183]
[1745843959379,6.6175,151.05,151.03,6.6181]
[1745843960372,496.62,151.1,150.97,4.0371]
[1745843960576,476.74,151.1,150.97,4.0371]
[1745843961273,476.74,151.1,151.04,6.6174]
[1745843961677,6.6167,151.07,151.04,6.6174]
[1745843963580,6.6169,151.06,151.04,6.6174]
[1745843965083,6.6169,151.06,151.03,6.618]
[1745843965280,6.6174,151.05,150.97,4.0371]
[1745843965879,6.617,151.06,151.03,6.6179]
[1745843966781,6.6175,151.05,151.02,6.6184]
[1745843967382,6.6175,151.05,150.97,4.0371]
[1745843968383,6.6175,151.05,151.03,6.6181]
[1745843969983,6.6175,151.05,151.02,6.6185]
[1745843971385,6.6178,151.04,151.02,6.6185]
[1745843971582,496.62,151.1,151.02,6.6185]
[1745843971782,496.62,151.1,151.01,6.6188]
[1745843972085,496.62,151.1,150.91,476.46]
[1745843972285,496.62,151.1,150.92,7.05853713]
[1745843972487,6.6189,151.02,150.99,6.6196]
[1745843972986,6.6189,151.02,150.92,19.0885]
[1745843973682,6.6183,151.03,150.93,13.2451]
[1745843973988,19.88,151.08,151.0,6.6192]
[1745843974287,6.6185,151.03,151.0,6.6192]
[1745843974787,6.6185,151.03,151.01,6.619]
[1745843974984,6.6186,151.02,150.94,13.2441]
[1745843975787,6.6185,151.03,151.0,6.6192]
[1745843976788,6.6187,151.02,151.0,6.6192]
[1745843978788,13.2312,151.09,150.94,13.2441]
[1745843979090,33.1112,151.09,150.94,13.2441]
[1745843979490,6.618,151.04,151.01,6.6187]
[1745843980393,6.618,151.04,151.02,6.6186]
[1745843980892,6.618,151.04,150.94,13.2441]
[1745843981591,6.618,151.04,151.01,6.6188]
[1745843982092,6.618,151.04,151.02,6.6184]
[1745843982895,6.618,151.04,151.01,6.6189]
[1745843984292,6.618,151.04,151.02,6.6186]
[1745843984493,6.6183,151.03,150.94,13.2441]
[1745843984891,6.6183,151.03,151.01,6.6189]
[1745843987193,6.6179,151.04,151.01,6.6189]
[1745843987893,6.6182,151.03,151.01,6.6189]
[1745843990794,19.88,151.09,150.95,13.2433]
[1745843991000,19.88,151.09,150.92,5.8425]
[1745843991200,19.88,151.09,150.93,1.21594449]
[1745843991497,20.2386,151.12,151.03,6.618]
[1745843992998,6.6175,151.05,151.03,6.618]
[1745843994500,20.2386,151.12,150.98,3.9941]
[1745843995200,6.6171,151.06,151.04,6.6177]
[1745843997601,6.6166,151.07,151.04,6.6177]
[1745843998205,6.6166,151.07,151.05,6.6173]
[1745843998408,20.2386,151.12,150.98,3.9941]
[1745843998901,20.2386,151.12,151.02,6.6185]
[1745843999201,6.6175,151.05,151.02,6.6183]
[1745844000407,6.6175,151.05,151.03,6.618]
[1745844000599,6.6178,151.04,150.98,3.9941]
[1745844000795,19.88,151.11,150.98,10.6142]
[1745844001104,19.88,151.11,150.91,499.94428195]
[1745844001304,19.88,151.09,150.96,6.621]
[1745844001496,19.88,151.09,150.93,3.9472]
[1745844001697,19.88,151.04,150.93,3.9472]
[1745844001904,19.88,151.04,150.95,6.6214]
[1745844002704,19.88,151.07,150.93,3.9472]
[1745844003104,0.3613,151.06,150.93,3.9472]
[1745844003304,0.3613,151.06,150.97,6.6205]
[1745844004105,6.6199,151.0,150.97,6.6205]
[1745844004505,6.62,150.99,150.97,6.6205]
[1745844005304,6.6197,151.0,150.97,6.6205]
[1745844006205,6.6193,151.01,150.98,6.6203]
[1745844006504,0.3613,151.06,150.98,6.6203]
[1745844006805,6.6193,151.01,150.98,6.6203]
[1745844008002,6.6188,151.02,150.93,3.9472]
[1745844008207,33.1125,151.08,150.93,3.9472]
[1745844008907,6.6189,151.02,150.99,6.6197]
[1745844009408,6.6192,151.01,150.99,6.6197]
[1745844009611,6.6192,151.01,150.98,6.6202]
[1745844010306,6.6197,151.0,150.98,6.6202]
[1745844010509,19.88,151.06,150.93,3.9472]
[1745844011003,19.88,151.04,150.93,3.9472]
[1745844011407,6.6208,150.98,150.95,6.6215]
[1745844012508,6.6208,150.98,150.96,6.6211]
[1745844013507,6.6208,150.98,150.95,6.6215]
[1745844013808,6.6201,150.99,150.93,3.9472]
[1745844014012,19.88,151.04,150.96,6.621]
[1745844014308,33.476,151.05,150.93,3.9472]
[1745844014508,33.476,151.05,150.97,6.6205]
[1745844014710,33.476,151.05,150.93,3.9472]
[1745844015007,6.6199,151.0,150.93,3.9472]
[1745844015206,33.476,151.05,150.93,3.9472]
[1745844015809,6.6202,150.99,150.97,6.6207]
[1745844016009,33.476,151.05,150.97,6.6207]
[1745844016307,6.62,150.99,150.97,6.6207]
[1745844016609,13.596,151.05,150.98,6.6204]
[1745844017309,0.3612,151.05,150.98,6.6204]
[1745844018008,0.3612,151.05,150.97,6.6207]
[1745844018610,6.6198,151.0,150.97,6.6207]
[1745844019515,6.62,150.99,150.97,6.6207]
[1745844019710,20.2412,151.05,150.96,6.621]
[1745844020807,6.6202,150.99,150.96,6.621]
[1745844022414,0.3612,151.05,150.93,3.9472]
[1745844022911,6.6193,151.01,150.93,3.9472]